Cogmind - Beta 11.1 @@@ ROGUE MODE // 2022.05.02 @ 09:34:56 Player: redd Result: Destroyed by as-54845 with Assembled Rifle Performance ------------- Evolutions (0) 0 Regions Visited (2) 400 Robots Destroyed (16) 80 Value Destroyed (300) 300 Prototype IDs (0) 0 Alien Tech Used (0) 0 Bonus (71) 71 TOTAL SCORE: 851 Bonus ------- High Alert Combat Kills 11 Follower Combat Kills 60 Cogmind --------- Core Integrity 0/250 Matter 271/300 Energy 100/100 System Corruption 8% Temperature Cool (38) Movement Core (50) Location -10/Mines Parts ------- > --- POWER (1) -------- (None) > --- PROPULSION (2) --- (None) > --- UTILITY (2) ------ Improved Targeting Computer > --- WEAPON (2) ------- Light Cannon > --- INVENTORY (5) ---- Ion Engine Aluminum Leg Particle Cannon Particle Cannon Particle Cannon Peak State ------------ > --- POWER ------------ Light Ion Engine > --- PROPULSION ------- Aluminum Leg Aluminum Leg > --- UTILITY ---------- Visual Processing Unit Improved Targeting Computer > --- WEAPON ----------- Particle Cannon Particle Cannon > --- INVENTORY -------- Ion Engine Aluminum Leg [Rating: 11] Favorites ----------- Power Light Ion Engine Engine Light Ion Engine Propulsion Aluminum Leg Leg Aluminum Leg Wheel Wheel Utility Visual Processing Unit Storage Small Storage Unit Processor Visual Processing Unit Weapon Particle Cannon Energy Gun EM Pulse Gun Energy Cannon Particle Cannon Ballistic Gun Light Assault Rifle Ballistic Cannon Light Cannon Build | -11 -10 -10 ------- Run | Scr Mat Min Slots Evolved . | . . . Power . | . . . Propulsion . | . . . Utility . | . . . Weapon . | . . . Parts Attached 17 | 6 10 1 Power 2 | 1 1 . Engine 2 | 1 1 . Core . | . . . Reactor . | . . . Propulsion 5 | 2 2 1 Treads . | . . . Leg 3 | . 2 1 Wheel 2 | 2 . . Hover . | . . . Flight . | . . . Utility 3 | 1 2 . Device . | . . . Storage 1 | 1 . . Processor 2 | . 2 . Hackware . | . . . Protection . | . . . Artifact . | . . . Weapon 7 | 2 5 . Energy Gun 3 | 2 1 . Energy Cannon 2 | . 2 . Ballistic Gun 1 | . 1 . Ballistic Cannon 1 | . 1 . Launcher . | . . . Special Weapon . | . . . Impact Weapon . | . . . Slashing Weapon . | . . . Piercing Weapon . | . . . Special Melee Weapon . | . . . Unidentified Prototypes . | . . . Parts Lost 8 | . 4 4 Power 2 | . 1 1 Propulsion 3 | . 1 2 Utility 1 | . . 1 Weapon 2 | . 2 . Highest Loss Streak 4 | . 4 4 To Critical Strikes . | . . . Average Slot Usage (%) 93 | . 92 96 Engine 12 | . 12 13 Leg 23 | . 22 27 Wheel 3 | . 5 . Storage 3 | . 4 . Processor 21 | . 19 26 Energy Gun 5 | . 7 . Energy Cannon 11 | . 10 13 Ballistic Cannon 9 | . 8 14 Naked Turns . | . . . Heaviest Build 12 | 12 12 10 Greatest Support 20 | 20 20 20 Greatest Overweight (x) . | . . . Average Overweight (x) . | . . . Largest Inventory Capacity 8 | 8 8 5 Average Capacity 5 | 6 5 5 Most Carried 7 | 5 7 5 Average Carried 4 | 2 4 4 Final Capacity 8 | 8 5 5 Final Carried 5 | 4 5 5 Class Distribution -------------------- 100% | Mutant Dominant Class ---------------- Mutant | -10/Materials Mutant | -10/Mines Resources | -11 -10 -10 ----------- Run | Scr Mat Min Matter Collected 404 | 225 132 47 Remotely . | . . . Salvage Created 439 | . 387 52 Parts 32 | . 29 3 Haulers Intercepted . | . . . Recyclers Shooed 2 | . 2 . Parts Field Recycled . | . . . Retrieved Matter . | . . . Parts Self-Destructed . | . . . Prevented . | . . . Kills | -11 -10 -10 ------- Run | Scr Mat Min Combat Hostiles Destroyed 14 | . 9 5 Guns 6 | . 6 . Cannons 5 | . . 5 AOE 3 | . 3 . Classes Destroyed 7 | . 6 1 Builder 1 | . 1 . Recycler 2 | . 2 . Operator 1 | . 1 . Watcher 2 | . 2 . Swarmer 7 | . 6 1 Grunt 3 | . 3 . Assembled 4 | . . 4 Best Kill Streak 10 | . 10 4 Combat Bots Only 8 | . 8 4 Max Kills in Single Turn 3 | . 3 1 Gunslinging . | . . . Exploded 3 | . 3 . Melee . | . . . Uniques/NPCs Destroyed . | . . . Combat | -11 -10 -10 -------- Run | Scr Mat Min Damage Taken 990 | . 476 514 Core 258 | . 143 115 Absorbed by Shields . | . . . Core Remaining (%) 100 | 100 . . Volleys Fired 39 | . 25 14 Largest 2 | . 2 2 Hottest 103 | . 103 103 Shots Fired 62 | . 41 21 Gun 38 | . 38 . Cannon 24 | . 3 21 Launcher . | . . . Special . | . . . Kinetic 18 | . 4 14 Thermal 8 | . 1 7 Explosive . | . . . Electromagnetic 36 | . 36 . Robot Hit Streak 4 | . 4 4 Robot Miss Streak 3 | . 2 3 Penetration Max . | . . . Secondary Targets . | . . . Shots Hit Robots 38 | . 27 11 Core Hits 26 | . 19 7 Critical Kills 1 | . 1 . Critical Parts Destroyed . | . . . Critical Strikes 1 | . 1 . Destroy 1 | . 1 . Melee Attacks . | . . . Impact . | . . . Slashing . | . . . Piercing . | . . . Sneak Attacks . | . . . Combat Hostiles . | . . . Follow-up Attacks . | . . . Damage Inflicted 1206 | . 925 281 Guns 342 | . 342 . Cannons 298 | . 17 281 Explosions 566 | . 566 . Melee . | . . . Ramming . | . . . Kinetic 209 | . 31 178 Thermal 465 | . 362 103 Explosive 204 | . 204 . Electromagnetic 328 | . 328 . Impact . | . . . Slashing . | . . . Piercing . | . . . Highest Corruption 8 | . 3 8 Average Corruption 3 | . 3 3 Corruption Purged . | . . . Corruption Blocked . | . . . Effects 12 | . 7 5 Matter Fused 3 | . . 3 Heat Flow Errors 1 | . 1 . Energy Discharges 1 | . 1 . Parts Rejected 2 | . 1 1 Data Loss (minor) 5 | . 4 1 Overload Shots . | . . . Overflow Damage 41 | . 31 10 Projectiles 10 | . . 10 Explosions 31 | . 31 . Melee . | . . . Knockbacks 3 | . . 3 Impact . | . . . Kinetic 2 | . . 2 Secondary 1 | . . 1 Self-Inflicted Damage 59 | . 59 . Shots 2 | . 2 . Rammed . | . . . Targets Rammed . | . . . Kicked . | . . . Crushed . | . . . Highest Temperature 201 | . 201 155 Average Temperature 68 | . 69 68 Received Heat Transfer 197 | . 123 74 Siege Activations . | . . . Robots Corrupted . | . . . Combat Hostiles . | . . . Parts Fried . | . . . Impact Corruptions 1 | . . 1 Robots Melted . | . . . Combat Hostiles . | . . . Parts Melted . | . . . Heat Transferred 685 | . 500 185 Parts Sabotaged . | . . . Parts Stolen . | . . . Parts Stripped . | . . . Power Chain Reactions 5 | . 5 . Missiles Intercepted . | . . . Alert | -11 -10 -10 ------- Run | Scr Mat Min Peak Influence 407 | . 407 161 Initial 88 | . . 88 Average 222 | . 274 124 Maximum Alert Level 2 | . 2 . Low Security (%) 38 | 100 12 100 Level 1 34 | . 49 . Level 2 26 | . 38 . Level 3 . | . . . Level 4 . | . . . Level 5 . | . . . High Security . | . . . Max Security . | . . . Squads Dispatched . | . . . Investigation . | . . . Extermination . | . . . Reinforcement . | . . . Assault . | . . . Garrison . | . . . Intercept . | . . . Searches Triggered . | . . . Construction Impeded . | . . . Haulers Reinforced . | . . . Active Scanning Responses . | . . . Cargo Convoy Interrupts . | . . . Stealth | -11 -10 -10 --------- Run | Scr Mat Min Distress Signals . | . . . Communications Jammed . | . . . Distress Signals . | . . . Times Spotted 30 | . 12 18 Peak Tracking Total 13 | . 8 13 Tactical Retreats 1 | . . 1 Traps | -11 -10 -10 ------- Run | Scr Mat Min Traps Triggered 1 | . 1 . Indirectly . | . . . Trap Hack Attempts . | . . . Triggered . | . . . Disarmed . | . . . Reprogrammed . | . . . Reused . | . . . Traps Extracted . | . . . Installed . | . . . Triggered . | . . . Machines | -11 -10 -10 ---------- Run | Scr Mat Min Machines Disabled 5 | . 5 . Max in Single Turn 3 | . 3 . Machines Sabotaged . | . . . Garrisons Compromised . | . . . Overloaded Fab Kills . | . . . Hacking | -11 -10 -10 --------- Run | Scr Mat Min Machines Accessed 4 | . 4 . Terminals 4 | . 4 . Fabricators . | . . . Repair Stations . | . . . Recycling Units . | . . . Scanalyzers . | . . . Garrison Access . | . . . Total Hacks 8 | . 8 . Successful 4 | . 4 . Failed 4 | . 4 . Catastrophic 1 | . 1 . Database Lockouts . | . . . Manual 1 | . 1 . Terminals 8 | . 8 . Fabricators . | . . . Repair Stations . | . . . Recycling Units . | . . . Scanalyzers . | . . . Garrison Access . | . . . Terminal Hacks 4 | . 4 . Record 2 | . 2 . Locate Traps 1 | . 1 . Dispatch Records 1 | . 1 . Fabricator Hacks . | . . . Repair Station Hacks . | . . . Recycling Unit Hacks . | . . . Scanalyzer . | . . . Garrison Access Hacks . | . . . Unauthorized Hacks . | . . . Terminals . | . . . Fabricators . | . . . Repair Stations . | . . . Recycling Units . | . . . Scanalyzers . | . . . Garrison Access . | . . . Data Cores Recovered 1 | . 1 . Used 1 | . 1 . Hacking Detections 3 | . 3 . Full Trace Events . | . . . Feedback Events . | . . . Feedback Blocked . | . . . Robot Schematics Acquired . | . . . Robots Built . | . . . Authchips . | . . . Time . | . . . Total Robot Build Rating . | . . . Part Schematics Acquired . | . . . Parts Built . | . . . Authchips . | . . . Time . | . . . Total Part Build Rating . | . . . Parts Repaired . | . . . Time . | . . . Parts Recycled . | . . . Recycled Matter . | . . . Retrieved Matter . | . . . Retrieved Components . | . . . Parts Scanalyzed . | . . . Part Schematics Acquired . | . . . Parts Damaged . | . . . Bothacking | -11 -10 -10 ------------ Run | Scr Mat Min Used RIF Installer . | . . . Robots Hacked . | . . . Non-combat . | . . . Combat . | . . . Robot Hacks Applied . | . . . Relay Couplers Released . | . . . Fabnet Peak Effective % . | . . . Robots Rewired . | . . . Allies Hacked . | . . . Hacks Repelled . | . . . Allies | -11 -10 -10 -------- Run | Scr Mat Min Total Allies 1 | . . 1 Largest Group 1 | . . 1 Highest-Rated Group 31 | . . 31 Highest-Rated Ally 31 | . . 31 Total Orders . | . . . Ally Attacks 9 | . . 9 Total Damage 167 | . . 167 Kills 4 | . . 4 Allies Corrupted . | . . . Allies Melted . | . . . Intel | -11 -10 -10 ------- Run | Scr Mat Min Robot Analysis Total . | . . . Derelict Logs Recovered . | . . . Drone Launches . | . . . Drone Recoveries . | . . . Exploration | -11 -10 -10 ------------- Run | Scr Mat Min Turns Passed 996 | 57 696 243 Spaces Moved 731 | 53 517 161 Core 5 | 5 . . Treads . | . . . Legs 580 | . 419 161 Wheels 146 | 48 98 . Hover . | . . . Flight . | . . . Fastest Speed 50 | 50 80 120 Average Speed 111 | 77 112 120 Slowest Speed 120 | 80 120 120 Overloaded Moves . | . . . Propulsion Burnouts . | . . . Robots Hopped . | . . . Cave-ins Triggered 1 | . 1 . Exploration Rate (%) 35 | 3 67 35 Regions Visited 2 Branch Regions 1 Pre-discovered Areas 1 | . . 1 Known Exits Taken . | . . . Unknown Exits Taken 2 | 1 1 . Scrap Searched . | . . . Spaces Dug . | . . . Terrain Destroyed 51 | . 51 . Melee . | . . . Projectile . | . . . AOE 51 | . 51 . Terrain Rammed . | . . . Walls Destroyed . | . . . Machines Disabled . | . . . Actions | -11 -10 -10 --------- Run | Scr Mat Min Total 853 | 68 594 191 Wait 32 | . 21 11 Move 729 | 52 516 161 Hop . | . . . Pick Up 26 | 10 14 2 Fast Attach . | . . . Attach 15 | 6 9 . Detach 1 | . 1 . Swap 2 | . 1 1 Drop 9 | . 7 2 Fire 39 | . 25 14 Melee . | . . . Ram . | . . . Kick . | . . . Crush . | . . . Escape Stasis . | . . . Rewire . | . . . Trap . | . . . Miscellaneous . | . . . Route ------- -11/Scrapyard -10/Materials (discovered 3 exits: [*Mat x2] / [*Min]) -10/Mines History --------- Turn | Location | Event 11 | -11/Scrapyard | Discovered new exit (range 15) 58 | -11/Scrapyard | Entered Materials 180 | -10/Materials | Crushed by falling debris 192 | -10/Materials | Core integrity fell below 50% 213 | -10/Materials | Destroyed 8 combat bots 220 | -10/Materials | Lost 4 parts (1p1n2w) 309 | -10/Materials | Build established: Mutant 376 | -10/Materials | Discovered new exit (range 14) 556 | -10/Materials | Discovered new exit (range 17) 648 | -10/Materials | Discovered new exit (range 18) 754 | -10/Materials | Entered Mines 758 | -10/Mines | Escorted by a lone wolf Derelict 779 | -10/Mines | Learned location of Storage (-9) 965 | -10/Mines | Assembled infested the area 970 | -10/Mines | Assisted by a Guerilla fighting off Assembled 990 | -10/Mines | Core integrity fell below 20% 997 | -10/Mines | Destroyed by as-54845 with Assembled Rifle Last Messages --------------- 00984_ Destroyed Asb. F-torch. 00984_ as-01314 system corrupted by crushing effect. 00984_ as-01314 destroyed. 00985_ as-21347 destroyed. 00985_ Lgt. Ion Engine destroyed. 00986_ V2-RXW(g) suffers critical hit (Destroy). 00986_ V2-RXW(g): "Mission, incomplete...*fzzt*" 00986_ V2-RXW(g) destroyed. 00986_ as-63365 knocked back. 00988_ as-48776 destroyed. 00989_ Aluminum Leg destroyed. 00990_ as-63365 destroyed. 00995_ as-26424 sneak attacks. 00995_ T-07 Excavator system corrupted by crushing effect. 00995_ as-78662 sneak attacks. 00995_ T-07 Excavator destroyed. 00996_ T-07 Excavator system terminally corrupted. 00996_ R-06 Scavenger destroyed. 00996_ Aluminum Leg destroyed. 00996_ as-55809 knocked back. Map ----- +----------------------------------------------------+ | ?????????????????????????????????????????????????? | | ?????????????????????????????????????????????????? | | ?????????????????????????????????????????????????? | | ?????????????????????????????????????????????????? | | ?????????????????????????????????????????????????? | | ?????????????????????????????????????????????????? | | ?????????????????????????????????????????????????? | | ?????????????????????????????????????????????????? | | ????????????????????????#????????????????????????? | | ???????????????????????# ????????????????????????? | | ??????????????????????# ????????????????????????? | | ??????????????????????# ????????????????????????? | | ??????????????????????# ????????????????????????? | | ??????????????????????# ????????????????????????? | | ??????????????????????# ????????????????????????? | | ??????????????????????# #???????????????????????? | | ???????????? ????????# #???????????????????????? | | ???????????? #???????# #???????????????????????? | | ???????????? ???????# #???????????????????????? | | ???????????? ???????# #???????????????????????? | | ??????????## #???????# $ ???????????????????????? | | ????? ???# #???????# %#???????????????????????? | | ????? ??# #??# ####% ???????????????????????? | | ????? ## ???? %a%%#???????????????????????? | | ???? #???????#%a##??????????????????????? | | ?????# ##?????##%*@##?????????????????????? | | ??????# ##???##r%%% #?????????????????????? | | ???????# #??##=a*!=%#?????????????????????? | | ????????# #?## =!= ##????????????????????? | | ???#####?# #?# #########????????????? | | ??## ##??# ###% """ ## """ #????????????? | | ??# #### a """ """ #????????????? | | ??#[ a! """ ## """ #????????????? | | ??#=[= ##%# ### #????????????? | | ??##%% ### ##|## #?# %% #????????????? | | ???##= ##?# ### ### ##?# %[ #????????????? | | ????#####??# ##?# #?### ##??## #####????????????? | | ???????????# #??# #???# #????# #????????????????? | | ???????????# #??# #???# #????# #????????????????? | | ???????????# #??# #???# #????# #????????????????? | | ?########### #??# #???# ####?# #????????????????? | | ?# #??# #???# #?# #??#######???????? | | ?# ############### #???#### ### #### ##??????? | | ## #?????????# #??????# #??????? | | # ##????????# ########???########### ##??????? | | #????????# #??## ##????????????######???????? | | ##??????## #### ##????????????????????????? | | ####??## #????????????????????????? | | #### #????????????????????????? | | ## #????????????????????????? | +----------------------------------------------------+ Best States ------------- Heat Dissipation 25 Energy Generation 10 Energy Capacity 125 Matter Stores 300 Matter Capacity 300 Sight Range 18 Terrain Scan Density 10 Evasion (%) 55 Targeting Accuracy 6 Item Schematics ----------------- None Robot Schematics ------------------ None Fabricated ------------ Nothing Alien Tech Used ----------------- None Achievements -------------- None Challenges ------------ None Game ------ Seed CorruptionTargetingTreads Manual? 0 Play Time 00:50:51 Cumulative 37.3 hours Start 2022.05.01 @ 17:26:03 End 2022.05.02 @ 09:34:56 Sessions 12 Manual Loads 0 Difficulty Rogue Special Mode None Game No. 29 Rogue 29 Adventurer 0 Explorer 0 Win Type - Total 0 Types 0/0/0/0/0/0/0/0/0 Lore% 19 Gallery% 15 Achievement% 16 Wizard Run 0 Options --------- ASCII 1 Keyboard 0 Movement Mouse Keybinds 0 Fullscreen 2 Font 24/Terminus Map View 130x56 Tactical HUD 1 Map Filters NONE Filters NONE Steam 1 RUN: e8e676d9-e145-4476-9b5e-e381d1af007c